bitfinex/quotes_SOLUSD_20250204
["timestamp","ask_amount","ask_price","bid_price","bid_amount"]
[1738684061799,13.69282853,214.42,214.36,7.9058]
[1738684061992,0.12549,214.38,214.33,37.50336869]
[1738684062287,37.50336869,214.38,214.31,38.13636869]
[1738684062591,0.03,214.42,214.37,0.633]
[1738684062897,0.03,214.42,214.39,0.633]
[1738684063106,0.03,214.42,214.41,38.13636869]
[1738684063687,0.03,214.42,214.41,38.38734869]
[1738684064193,0.03,214.42,214.41,38.13636869]
[1738684064525,0.03,214.42,214.41,39.0868045]
[1738684064682,0.03,214.42,214.41,54.95745303]
[1738684065034,0.03,214.46,214.45,79.69279722]
[1738684065197,4.6595,214.62,214.54,0.633]
[1738684065518,4.6595,214.62,214.57,37.50336869]
[1738684065690,42.19236869,214.64,214.57,37.50336869]
[1738684065890,4.689,214.64,214.57,37.50336869]
[1738684066221,0.12549,214.63,214.58,0.633]
[1738684066715,0.03,214.64,214.62,0.633]
[1738684067016,0.03,214.64,214.59,37.50336869]
[1738684067307,0.03,214.64,214.59,38.13636869]
[1738684067516,20.03,214.64,214.59,37.50336869]
[1738684067714,13.66282853,214.62,214.55,37.50336869]
[1738684067896,37.50336869,214.61,214.53,37.50336869]
[1738684068095,13.66282853,214.6,214.53,37.50336869]
[1738684068407,0.12549,214.58,214.51,37.50336869]
[1738684068609,0.12549,214.56,214.5,0.633]
[1738684068932,0.12549,214.54,214.49,0.633]
[1738684069217,0.12549,214.54,214.47,38.13636869]
[1738684069511,13.66282853,214.54,214.47,38.13636869]
[1738684069718,13.66282853,214.54,214.47,37.50336869]
[1738684069902,13.66282853,214.54,214.47,38.13636869]
[1738684070299,42.16246869,214.63,214.55,0.633]
[1738684070506,4.6591,214.63,214.55,37.50336869]
[1738684070714,0.25098,214.6,214.55,37.50336869]
[1738684070918,0.12549,214.57,214.51,37.50336869]
[1738684071219,4.6591,214.63,214.55,38.13636869]
[1738684071514,4.6591,214.63,214.57,38.13636869]
[1738684071686,0.03,214.64,214.5,37.50336869]
[1738684071687,0.03,214.64,214.6,0.633]
[1738684071887,0.03,214.64,214.62,0.633]
[1738684072086,0.03,214.64,214.63,37.50336869]
[1738684073005,0.03,214.64,214.63,38.13636869]
[1738684073217,0.03,214.64,214.63,37.50336869]
[1738684073515,0.03,214.64,214.62,0.633]
[1738684074497,0.03,214.64,214.63,37.50336869]
[1738684074693,0.03,214.64,214.59,37.50336869]
[1738684074921,0.12549,214.59,214.53,48.11986869]
[1738684075090,13.91380853,214.59,214.53,38.13636869]
[1738684075292,37.50336869,214.57,214.49,39.97386869]
[1738684075505,37.50336869,214.57,214.51,0.633]
[1738684075506,0.12549,214.56,214.51,0.633]
[1738684075706,0.12549,214.56,214.49,39.97386869]
[1738684076010,13.91380853,214.56,214.49,39.97386869]
[1738684076328,0.12549,214.54,214.48,0.633]
[1738684076533,0.12549,214.54,214.47,37.50336869]
[1738684077027,4.6613,214.53,214.49,0.633]
[1738684077201,0.25098,214.52,214.47,37.50336869]
[1738684077407,0.25098,214.52,214.47,38.13636869]
[1738684077915,0.25098,214.52,214.47,37.50336869]
[1738684078116,0.25098,214.52,214.47,38.13636869]
[1738684078427,4.6613,214.53,214.47,38.13636869]
[1738684078610,4.6613,214.53,214.47,37.50336869]
[1738684078793,13.91380853,214.52,214.46,0.03]
[1738684078996,0.12549,214.49,214.46,0.03]
[1738684079503,16.3146,214.53,214.47,0.633]
[1738684079703,23.2962,214.63,214.46,0.03]
[1738684079704,8.7594656,214.64,214.55,0.633]
[1738684079911,4.6591,214.63,214.55,38.13636869]
[1738684080108,4.6591,214.63,214.57,38.13636869]
[1738684080320,0.03,214.64,214.59,38.13636869]
[1738684080519,0.03,214.64,214.61,38.13636869]
[1738684080824,0.03,214.64,214.63,37.50336869]
[1738684081022,0.03,214.64,214.6,0.633]
[1738684081323,0.12549,214.63,214.57,37.50336869]
[1738684081715,0.12549,214.63,214.56,10.2486]
[1738684081716,0.12549,214.6,214.56,9.6156]
[1738684081907,0.12549,214.59,214.52,0.633]
[1738684082223,0.12549,214.59,214.54,0.633]
[1738684082426,0.12549,214.57,214.54,0.633]
[1738684082718,4.6596,214.62,214.58,0.633]
[1738684083023,4.689,214.64,214.6,0.633]
[1738684083229,4.6889,214.64,214.6,0.633]
[1738684083400,0.03,214.64,214.59,37.50336869]
[1738684083720,0.03,214.64,214.56,5.633]
[1738684083721,0.12549,214.6,214.56,5.633]
[1738684083899,4.6891,214.64,214.58,38.13636869]
[1738684084100,4.6891,214.64,214.62,38.13636869]
[1738684084101,0.03,214.64,214.62,38.13636869]
[1738684084304,0.03,214.64,214.6,37.50336869]
[1738684084606,0.25098,214.63,214.57,0.633]
[1738684084801,0.25098,214.6,214.56,5.0]
[1738684085134,13.53733853,214.6,214.56,5.0]
[1738684085420,0.12549,214.57,214.56,5.0]
[1738684085623,0.25098,214.6,214.59,4.74902]
[1738684085805,0.25098,214.6,214.59,2e-05]
[1738684086007,0.25098,214.6,214.56,2e-05]
[1738684086008,20.0,214.57,214.56,2e-05]
[1738684086213,20.25098,214.57,214.56,2e-05]
[1738684086410,24.91138,214.57,214.56,2e-05]
[1738684086634,38.32322853,214.57,214.56,2e-05]
[1738684087308,76.19359722,214.57,214.56,2e-05]
[1738684087704,76.44457722,214.57,214.56,2e-05]
[1738684088123,0.50196,214.47,214.46,0.03]
[1738684088428,0.25098,214.41,214.36,38.13636869]
[1738684088603,0.25098,214.41,214.36,0.633]
[1738684088927,0.25098,214.38,214.32,0.633]
[1738684089113,13.66282853,214.37,214.3,37.50336869]
[1738684089308,0.25098,214.35,214.3,37.50336869]
[1738684089523,51.16619722,214.35,214.29,0.633]
[1738684089716,0.25098,214.33,214.29,0.633]
[1738684089911,37.50336869,214.41,214.35,0.633]
[1738684090127,38.9527282,214.47,214.42,0.633]
[1738684090435,20.0,214.44,214.39,0.633]
[1738684090610,0.12549,214.43,214.41,0.633]
[1738684090818,0.12549,214.46,214.41,38.13636869]
[1738684091125,0.25098,214.47,214.43,38.13636869]
[1738684091328,0.12549,214.47,214.43,38.13636869]
[1738684091529,20.12549,214.48,214.43,38.13636869]
[1738684091727,0.25098,214.45,214.41,37.50336869]
[1738684091928,13.78831853,214.43,214.38,0.633]
[1738684092227,0.12549,214.44,214.4,0.633]
[1738684092443,37.50336869,214.51,214.44,0.633]
[1738684092726,37.50336869,214.47,214.4,0.633]
[1738684093031,37.50336869,214.49,214.44,0.633]
[1738684093234,37.50336869,214.49,214.36,2.5123]
[1738684093235,42.16476869,214.53,214.46,0.633]
[1738684093436,37.50336869,214.57,214.5,0.633]
[1738684093599,4.6602,214.58,214.5,0.633]
[1738684093600,4.6602,214.58,214.51,37.50336869]
[1738684093804,4.6602,214.58,214.52,0.633]
[1738684094105,4.6602,214.58,214.44,5.0]
[1738684094106,51.16619722,214.57,214.5,0.633]
[1738684094633,0.12549,214.54,214.5,0.633]
[1738684094804,0.12549,214.55,214.52,0.633]
[1738684095003,20.25098,214.56,214.52,0.633]
[1738684095201,0.25098,214.56,214.53,0.633]
[1738684095620,50.91521722,214.59,214.53,0.633]
[1738684095904,50.91521722,214.59,214.51,37.50336869]
[1738684095905,0.25098,214.57,214.51,38.13636869]
[1738684096108,0.25098,214.57,214.53,0.633]
[1738684096341,4.6599,214.6,214.55,0.633]
[1738684096507,0.063,214.63,214.55,0.633]
[1738684096508,0.063,214.63,214.6,0.633]
[1738684096702,0.063,214.63,214.62,0.633]
[1738684099526,0.063,214.63,214.61,37.50336869]
[1738684099527,0.063,214.63,214.6,5.633]
[1738684099727,0.063,214.63,214.62,0.633]
[1738684100634,0.063,214.63,214.62,5.633]
[1738684102743,0.063,214.63,214.62,10.633]
[1738684103723,0.03,214.64,214.63,6.9263]
[1738684104031,0.03,214.64,214.63,44.42966869]
[1738684104234,0.03,214.68,214.67,38.13636869]
[1738684104419,0.03,214.68,214.67,47.47736869]
[1738684104943,0.03,214.68,214.67,52.13566869]
[1738684105551,0.12549,214.78,214.73,0.633]
[1738684105736,37.50336869,214.77,214.71,0.633]
[1738684106119,37.75434869,214.79,214.71,38.13636869]
[1738684106646,4.655,214.82,214.75,38.13636869]
[1738684106935,0.25098,214.81,214.75,38.13636869]
[1738684107742,37.50336869,214.83,214.75,38.13636869]
[1738684107938,4.6546,214.84,214.75,38.13636869]
[1738684108131,51.29168722,214.83,214.75,38.13636869]
[1738684108336,0.25098,214.8,214.73,38.13636869]
[1738684108568,37.50336869,214.79,214.73,0.633]
[1738684108967,4.6561,214.77,214.73,0.633]
[1738684109151,4.6561,214.77,214.71,38.13636869]
[1738684109459,4.6561,214.77,214.67,14.341]
[1738684109460,13.69282853,214.76,214.69,37.50336869]
[1738684109661,0.25098,214.7,214.67,5.0]
[1738684109820,13.66282853,214.7,214.67,5.0]
[1738684110163,13.41184853,214.72,214.67,5.0]
[1738684110164,50.91521722,214.68,214.67,5.0]
[1738684110371,51.16619722,214.68,214.67,5.0]
[1738684110533,0.12549,214.66,214.62,10.0]
[1738684110870,13.41184853,214.63,214.62,10.0]
[1738684111037,18.07094853,214.63,214.62,10.0]
[1738684111231,18.32192853,214.63,214.62,10.0]
[1738684111548,18.19643853,214.63,214.62,10.0]
[1738684112140,4.6578,214.69,214.63,0.633]
[1738684112353,4.6578,214.69,214.64,37.50336869]
[1738684112731,4.6578,214.69,214.64,0.633]
[1738684112936,0.25098,214.66,214.62,10.0]
[1738684113247,37.50336869,214.64,214.62,10.0]
[1738684113452,13.91380853,214.63,214.62,10.0]
[1738684113747,13.91380853,214.63,214.62,15.0]
[1738684113943,13.78831853,214.63,214.62,15.0]
[1738684114148,37.50336869,214.68,214.62,15.0]
[1738684114350,37.50336869,214.71,214.63,38.13636869]
[1738684114531,13.91380853,214.7,214.63,0.633]
[1738684114937,13.78831853,214.7,214.63,38.13636869]
[1738684115156,4.6578,214.69,214.63,37.50336869]
[1738684115376,13.78831853,214.66,214.62,15.0]
[1738684115532,37.50336869,214.65,214.62,15.0]
[1738684115739,0.25098,214.65,214.62,15.0]
[1738684115927,37.50336869,214.71,214.64,0.633]
[1738684116133,4.6576,214.71,214.64,38.13636869]
[1738684116568,4.6571,214.73,214.68,0.633]
[1738684116734,37.50336869,214.77,214.7,0.633]
[1738684116933,4.6567,214.75,214.7,0.633]
[1738684117168,13.81831853,214.76,214.7,0.633]
[1738684117367,13.69282853,214.76,214.7,0.633]
[1738684117658,13.69282853,214.76,214.7,38.13636869]
[1738684117958,0.03,214.76,214.7,37.50336869]
[1738684118159,13.78831853,214.74,214.67,0.633]
[1738684118453,13.66282853,214.7,214.63,5.633]
[1738684118656,0.12549,214.66,214.63,5.0]
[1738684119067,37.50336869,214.69,214.63,5.633]
[1738684119281,37.50336869,214.69,214.63,5.0]
[1738684119936,4.6578,214.7,214.63,5.633]
[1738684120156,37.50336869,214.71,214.66,0.633]
[1738684120376,37.50336869,214.71,214.64,38.13636869]
[1738684120544,42.16036869,214.73,214.64,38.13636869]
[1738684120745,13.66282853,214.68,214.63,5.0]
[1738684120964,13.66282853,214.68,214.63,5.633]
[1738684121165,4.90898,214.68,214.63,10.0]
[1738684121483,0.25098,214.66,214.63,10.0]
[1738684121659,4.658,214.68,214.63,10.633]
[1738684122059,4.658,214.68,214.65,0.633]
[1738684122837,13.53733853,214.7,214.65,0.633]
[1738684123042,18.19493853,214.7,214.63,10.633]
[1738684123546,0.12549,214.67,214.63,10.633]
[1738684123739,0.12549,214.67,214.63,10.0]
[1738684123960,4.6576,214.7,214.66,0.633]
[1738684124347,18.32022853,214.72,214.66,0.633]
[1738684124542,4.78289,214.72,214.69,0.633]
[1738684124741,4.78289,214.72,214.67,0.633]
[1738684124937,37.62885869,214.69,214.63,15.0]
[1738684125168,37.50336869,214.73,214.65,0.633]
[1738684125479,0.03,214.76,214.65,0.633]
[1738684125480,0.03,214.76,214.74,0.633]
[1738684126060,18.34912853,214.76,214.72,0.633]
[1738684126335,24.81179,214.76,214.7,38.13636869]
[1738684126735,13.78831853,214.75,214.7,38.13636869]
[1738684127056,13.78831853,214.75,214.74,4.87451]
[1738684127368,55.94818722,214.75,214.74,4.87451]
[1738684127569,18.44481853,214.75,214.74,4.87451]
[1738684127767,4.6565,214.75,214.74,4.87451]
[1738684127964,4.6565,214.75,214.74,1e-05]
[1738684128158,18.44481853,214.75,214.74,1e-05]
[1738684128986,18.31932853,214.75,214.74,1e-05]
[1738684129667,19.57030853,214.75,214.74,1e-05]
[1738684129867,18.57030853,214.75,214.74,1e-05]
[1738684130056,19.57030853,214.75,214.74,5.00001]
[1738684130240,18.57030853,214.75,214.74,1e-05]
[1738684130643,18.31932853,214.75,214.74,1e-05]
[1738684130846,4.6864,214.76,214.74,1e-05]
[1738684131256,13.91380853,214.75,214.74,1e-05]
[1738684132070,13.66282853,214.75,214.74,1e-05]
[1738684132250,42.18976869,214.76,214.74,1e-05]
[1738684132664,42.18976869,214.76,214.74,5.00001]
[1738684132851,22.89500033,214.75,214.74,5.00001]
[1738684133054,37.80880886,214.75,214.74,1e-05]
[1738684133247,42.46530886,214.75,214.74,1e-05]
[1738684133449,41.46530886,214.75,214.74,1e-05]
[1738684133649,0.03,214.76,214.74,1e-05]
[1738684133861,0.03,214.76,214.74,0.63301]
[1738684134053,18.60020853,214.76,214.74,1e-05]
[1738684134673,51.12258035,214.75,214.74,5.00001]
[1738684135350,55.77908035,214.75,214.74,5.00001]
[1738684135752,56.77908035,214.75,214.74,1e-05]
[1738684136267,55.77908035,214.75,214.74,1e-05]
[1738684137160,55.77908035,214.75,214.74,5.00001]
[1738684138676,55.77908035,214.75,214.74,1e-05]
[1738684138870,56.77908035,214.75,214.74,1e-05]
[1738684140279,1.0,214.72,214.63,15.0]
[1738684140582,50.87160035,214.65,214.63,15.0]
[1738684140883,37.20877182,214.71,214.65,0.633]
[1738684141072,16.2979,214.75,214.67,0.633]
[1738684141385,53.50667182,214.75,214.67,0.633]
[1738684141576,53.50667182,214.75,214.69,0.633]
[1738684141778,4.7195,214.75,214.69,0.633]
[1738684141971,13.66282853,214.74,214.71,0.633]
[1738684142287,13.66282853,214.7,214.66,0.633]
[1738684142591,4.6578,214.69,214.67,5.0]
[1738684142761,41.86547182,214.74,214.68,0.633]
[1738684142961,41.86547182,214.74,214.7,0.633]
[1738684143155,4.7197,214.75,214.72,0.633]
[1738684143793,4.7197,214.75,214.67,5.0]
[1738684143794,0.25098,214.7,214.67,5.0]
[1738684143961,0.25098,214.71,214.68,0.633]
[1738684143962,37.20877182,214.71,214.68,0.633]
[1738684144158,0.063,214.75,214.73,0.633]
[1738684144666,13.91380853,214.74,214.69,8.9309]
[1738684144856,37.20877182,214.71,214.69,0.633]
[1738684145057,50.93460035,214.75,214.72,0.633]
[1738684145587,50.93460035,214.75,214.7,0.633]
[1738684146381,50.93460035,214.75,214.72,0.633]
[1738684146570,4.6567,214.74,214.7,0.633]
[1738684146770,51.12258035,214.73,214.68,0.633]
[1738684147372,37.20877182,214.71,214.68,0.633]
[1738684147556,13.91380853,214.7,214.68,0.633]
[1738684147881,37.20877182,214.71,214.68,0.633]
[1738684148077,16.2986,214.74,214.68,0.633]
[1738684148279,13.91380853,214.72,214.68,0.633]
[1738684148459,4.6574,214.71,214.68,0.633]
[1738684148660,0.063,214.75,214.74,0.633]
[1738684148867,4.7196,214.75,214.74,0.633]
[1738684149269,4.7196,214.75,214.72,0.633]
[1738684149473,4.7196,214.75,214.74,0.633]
[1738684150080,0.063,214.75,214.74,0.633]
[1738684150791,0.063,214.75,214.72,0.633]
[1738684150792,37.27177182,214.75,214.72,0.633]
[1738684151162,0.063,214.75,214.74,0.633]
[1738684151403,0.063,214.75,214.72,0.633]
[1738684151563,37.27177182,214.75,214.72,0.633]
[1738684151965,0.063,214.75,214.74,0.633]
[1738684152389,0.063,214.75,214.72,0.633]
[1738684152591,0.063,214.75,214.74,0.633]
[1738684155711,0.063,214.75,214.72,10.633]
[1738684156202,0.063,214.75,214.74,5.0]
[1738684156499,4.7195,214.75,214.74,5.03]
[1738684156790,5.22146,214.75,214.74,5.03]
[1738684156991,18.63330853,214.75,214.74,5.03]
[1738684158470,0.25098,214.73,214.72,10.0]
[1738684158793,23.1400051,214.73,214.72,10.0]
[1738684159490,36.80283363,214.73,214.72,10.0]
[1738684160389,41.20885363,214.73,214.72,10.0]
[1738684160594,18.31982853,214.73,214.72,10.0]
[1738684160769,0.063,214.75,214.74,0.633]
[1738684161090,4.7195,214.75,214.74,0.633]
[1738684161394,13.66282853,214.74,214.72,10.633]
[1738684162594,0.063,214.75,214.74,0.633]
[1738684162893,4.7195,214.75,214.74,0.633]
[1738684163096,4.7195,214.75,214.72,10.633]
[1738684163291,0.063,214.75,214.74,0.633]
[1738684164795,0.063,214.75,214.74,23.5220251]
[1738684165578,0.063,214.75,214.74,31.9214251]
[1738684166080,0.063,214.75,214.74,36.5781251]
[1738684166281,0.063,214.85,214.83,0.633]
[1738684166486,0.063,214.85,214.83,23.5220251]
[1738684167172,0.063,214.85,214.83,28.1767251]
[1738684168187,0.063,214.85,214.84,8.3994]
[1738684168394,58.99072155,214.95,214.85,2.784]
[1738684168617,18.56630853,214.94,214.85,25.6730251]
[1738684168777,13.66282853,214.88,214.85,2.784]
[1738684168977,22.8890251,214.89,214.85,2.784]
[1738684169197,22.8890251,214.91,214.85,2.784]
[1738684169497,13.66282853,214.92,214.85,25.6730251]
[1738684169995,22.8890251,214.93,214.85,25.6730251]
[1738684170401,58.99072155,214.95,214.85,25.6730251]
[1738684170592,63.64292155,214.95,214.85,25.6730251]
[1738684171474,22.8890251,214.95,214.94,0.633]
[1738684171704,4.652,214.96,214.94,0.633]
[1738684171880,0.063,214.97,214.96,0.633]
[1738684172707,22.9520251,214.97,214.96,0.633]
[1738684173389,0.063,214.97,214.96,0.633]
[1738684173901,27.6038251,214.97,214.95,0.633]
[1738684174276,27.6038251,214.97,214.93,0.633]
[1738684174479,27.6038251,214.97,214.96,0.633]
[1738684174703,0.063,214.97,214.96,0.633]
[1738684175296,4.7148,214.97,214.93,0.633]
[1738684175604,0.063,214.97,214.96,0.633]
[1738684176196,0.063,214.97,214.96,9.3007]
[1738684177899,0.063,214.97,214.96,0.633]
[1738684181320,23.2030051,214.97,214.93,0.633]
[1738684181627,22.8890251,214.96,214.93,0.633]
[1738684181924,22.8890251,214.96,214.91,9.1443]
[1738684182089,22.8890251,214.96,214.94,0.633]
[1738684182290,0.31398,214.97,214.92,0.633]
[1738684182291,22.8890251,214.95,214.92,0.633]
[1738684182919,4.6523,214.95,214.92,0.633]
[1738684183096,0.31398,214.97,214.96,0.633]
[1738684183097,0.063,214.97,214.96,0.633]
[1738684184695,27.6038251,214.97,214.96,0.633]
[1738684185026,0.063,214.97,214.96,0.633]
[1738684185901,0.063,214.97,214.96,23.5220251]
[1738684186114,0.063,214.97,214.96,25.5704251]
[1738684186792,0.063,214.97,214.96,2.6814]
[1738684186994,0.063,214.97,214.96,25.5704251]
[1738684188131,22.8890251,215.07,215.04,9.0456]
[1738684188303,22.8890251,215.17,215.15,0.633]
[1738684188490,0.063,215.19,215.17,0.633]
[1738684189048,0.063,215.19,215.18,31.3611251]
[1738684190089,43.07555224,215.31,215.28,0.633]
[1738684190288,43.07555224,215.31,215.3,0.633]
[1738684191631,65.96457734,215.31,215.28,0.633]
[1738684191923,43.07555224,215.31,215.29,0.633]
[1738684192108,43.07555224,215.31,215.3,23.5220251]
[1738684192287,43.07555224,215.31,215.3,0.633]
[1738684192690,43.07555224,215.31,215.28,0.633]
[1738684192916,71.33228471,215.36,215.19,2.1071]
[1738684192917,22.8890251,215.34,215.31,0.633]
[1738684193431,22.8890251,215.32,215.28,0.633]
[1738684193596,27.5329251,215.34,215.3,0.633]
[1738684193800,4.6435,215.36,215.34,0.633]
[1738684193991,27.5320251,215.38,215.34,0.633]
[1738684194196,0.063,215.41,215.4,0.633]
[1738684194807,0.063,215.41,215.4,23.5220251]
[1738684195008,0.063,215.41,215.4,0.633]
[1738684195421,0.063,215.41,215.38,0.633]
[1738684195712,0.063,215.41,215.4,23.5220251]
[1738684195919,0.063,215.41,215.4,0.633]
[1738684196122,0.063,215.41,215.4,23.5220251]
[1738684196419,4.6392,215.55,215.49,0.633]
[1738684196597,4.6392,215.55,215.53,0.633]
[1738684196924,22.8890251,215.59,215.55,0.633]
[1738684197092,4.6383,215.6,215.55,0.633]
[1738684197289,24.16269355,215.67,215.58,22.8890251]
[1738684197491,22.8890251,215.65,215.57,0.633]
[1738684197710,13.91380853,215.62,215.57,0.633]
[1738684197923,22.8890251,215.63,215.6,0.633]
[1738684198108,22.8890251,215.65,215.6,0.633]
[1738684198302,22.8890251,215.65,215.62,0.633]
[1738684198704,41.52339443,215.67,215.62,0.633]
[1738684198904,99.30901282,215.7,215.62,37.51959443]
[1738684199213,99.30901282,215.7,215.65,8.3381]
[1738684199398,13.53733853,215.69,215.65,8.3381]
[1738684199599,99.30901282,215.7,215.65,8.3381]
[1738684199804,99.30901282,215.7,215.66,0.633]
[1738684200016,136.19560725,215.7,215.66,0.633]
[1738684200511,142.87001832,215.83,215.65,8.3381]
[1738684200512,37.88659443,215.93,215.71,0.633]
[1738684200713,36.88659443,215.84,215.78,20.0]
[1738684200919,36.88659443,215.84,215.74,38.96779443]
[1738684201097,30.0,215.96,215.82,9.1716]
[1738684201299,11.81847911,216.01,215.87,1.0]
[1738684201501,11.81847911,216.01,215.91,1.0]
[1738684201721,7.18907911,216.01,215.91,1.0]
[1738684202031,77.43548513,216.0,215.99,1.0]
[1738684202335,1.0,215.98,215.86,36.88659443]
[1738684202507,36.88659443,215.91,215.83,4.6331]
[1738684202695,36.88659443,215.92,215.82,36.88659443]
[1738684203002,1.0,215.99,215.91,5.0]
[1738684203209,1.0,215.91,215.75,0.69479529]
[1738684203427,1.0,215.91,215.74,2.0812]
[1738684203628,0.25098,215.91,215.74,2.0812]
[1738684203943,5.6943,215.92,215.74,4.6352]
[1738684203944,5.663,215.92,215.74,4.6352]
[1738684204096,1.0,215.89,215.73,8.281]
[1738684204419,36.88659443,215.75,215.66,2.0738]
[1738684204615,1.0,215.8,215.66,2.0738]
[1738684204616,36.88659443,215.73,215.66,2.0738]
[1738684204925,36.88659443,215.77,215.67,36.88659443]
[1738684205125,36.88659443,215.75,215.65,50.81399443]
[1738684205443,1.17011338,215.85,215.73,36.88659443]
[1738684205444,36.88659443,215.85,215.73,36.88659443]
[1738684205599,1.30910911,215.92,215.78,36.88659443]
[1738684205807,36.88659443,215.89,215.8,36.88659443]
[1738684206019,0.063,215.92,215.84,36.88659443]
[1738684206223,0.063,215.92,215.86,36.88659443]
[1738684206427,0.063,215.92,215.88,36.88659443]
[1738684206602,0.063,215.92,215.86,36.88659443]
[1738684207007,20.86863837,215.95,215.86,36.88659443]
[1738684207211,76.43548513,216.0,215.94,36.88659443]
[1738684207400,76.43548513,216.0,215.98,37.88659443]
[1738684207601,44.05580806,216.0,215.99,4.6298]
[1738684207820,36.88659443,216.15,215.99,4.6298]
[1738684208032,36.88659443,216.06,215.97,2.1287]
[1738684208737,36.88659443,216.02,215.92,36.88659443]
[1738684208932,36.88659443,215.96,215.88,36.88659443]
[1738684209128,20.0,216.0,215.87,2.1562]
[1738684209310,36.88659443,215.91,215.86,5.0]
[1738684209508,1.0,216.01,215.86,5.0]
[1738684209509,36.88659443,215.93,215.86,5.0]
[1738684209857,36.88659443,215.91,215.86,5.0]
[1738684210013,1.0,215.98,215.86,5.0]
[1738684210014,36.88659443,215.89,215.86,5.0]
[1738684210318,36.88659443,215.87,215.86,5.0]
[1738684210705,50.80040296,215.87,215.86,5.0]
[1738684210919,51.80040296,215.87,215.86,5.0]
[1738684211130,36.88659443,215.75,215.66,36.88659443]
[1738684211317,36.88659443,215.71,215.65,5.0]
[1738684211506,36.88659443,215.83,215.7,36.88659443]
[1738684211707,36.88659443,215.85,215.75,36.88659443]
[1738684211908,36.88659443,215.79,215.69,36.88659443]
[1738684212137,36.88659443,215.75,215.67,36.88659443]
[1738684212321,36.88659443,215.77,215.67,36.88659443]
[1738684212912,36.88659443,215.75,215.65,41.88659443]
[1738684213326,36.88659443,215.81,215.71,36.88659443]
[1738684213926,36.88659443,215.76,215.67,36.88659443]
[1738684214121,36.88659443,215.7,215.65,5.0]
[1738684214841,36.88659443,215.76,215.67,36.88659443]
[1738684215024,36.88659443,215.8,215.71,36.88659443]
[1738684215410,36.88659443,215.76,215.67,36.88659443]
[1738684215731,13.41184853,215.79,215.65,41.88659443]
[1738684215732,36.88659443,215.74,215.65,41.88659443]
[1738684216135,41.52189443,215.74,215.65,51.88659443]
[1738684216339,36.88659443,215.7,215.65,15.0]
[1738684216739,36.88659443,215.68,215.65,15.0]
[1738684216938,36.88659443,215.66,215.65,15.0]
[1738684217240,36.88659443,215.7,215.65,15.0]
[1738684218133,36.88659443,215.68,215.65,15.0]
[1738684218515,36.88659443,215.66,215.65,15.0]
[1738684218915,50.42393296,215.66,215.65,15.0]
[1738684219221,36.88659443,215.66,215.65,15.0]
[1738684219824,55.06083296,215.66,215.65,15.0]
[1738684220132,55.06083296,215.66,215.57,5.0]
[1738684220133,13.41184853,215.63,215.57,5.0]
[1738684220337,36.88659443,215.62,215.57,5.0]
[1738684220513,36.88659443,215.72,215.61,36.88659443]
[1738684220718,36.88659443,215.7,215.61,36.88659443]
[1738684220915,36.88659443,215.64,215.57,5.0]
[1738684221120,36.88659443,215.62,215.57,5.0]
[1738684221619,50.29844296,215.68,215.59,36.88659443]
[1738684221814,41.52279443,215.7,215.61,36.88659443]
[1738684222012,36.88659443,215.74,215.65,36.88659443]
[1738684222625,37.01208443,215.72,215.63,36.88659443]
[1738684222816,36.88659443,215.72,215.63,36.88659443]
[1738684223242,41.52129443,215.76,215.67,36.88659443]
[1738684223427,55.04,215.86,215.67,36.88659443]
[1738684223428,36.88659443,215.82,215.73,36.88659443]